bitfinex-derivatives/quotes_BTCF0:USTF0_20260106
["timestamp","ask_amount","ask_price","bid_price","bid_amount"]
[1767707161363,0.02044875,93742.0,93730.0,0.010672]
[1767707161565,0.010671,93744.0,93731.0,0.010672]
[1767707161865,0.09072,93749.0,93724.0,0.02244237]
[1767707161866,0.02044875,93748.0,93734.0,0.010672]
[1767707162268,0.03111875,93748.0,93734.0,0.010672]
[1767707162463,0.02044875,93747.0,93734.0,0.010672]
[1767707162967,0.02044875,93747.0,93731.0,0.010672]
[1767707163465,0.01067,93746.0,93731.0,0.010672]
[1767707164065,0.03111875,93746.0,93731.0,0.010672]
[1767707166465,0.0320371,93744.0,93728.0,0.010672]
[1767707166669,0.0213661,93733.0,93725.0,0.010673]
[1767707167169,0.09978488,93734.0,93725.0,0.010673]
[1767707168056,0.09978488,93734.0,93727.0,0.010673]
[1767707168263,0.0213661,93737.0,93720.0,0.010673]
[1767707168462,0.0213661,93737.0,93730.0,0.010672]
[1767707169372,0.0213661,93737.0,93727.0,0.010672]
[1767707171077,0.0213661,93737.0,93720.0,0.010673]
[1767707171274,0.0213661,93737.0,93720.0,0.09798859]
[1767707171467,0.0213661,93737.0,93729.0,0.010672]
[1767707172569,0.0213661,93737.0,93720.0,0.010673]
[1767707172772,0.09978488,93744.0,93735.0,0.010672]
[1767707173970,0.09978488,93744.0,93733.0,0.010672]
[1767707175177,0.12115098,93744.0,93733.0,0.010672]
[1767707175472,0.0213661,93743.0,93733.0,0.010672]
[1767707176875,0.0213661,93743.0,93731.0,0.010672]
[1767707177778,0.1120861,93743.0,93731.0,0.010672]
[1767707178175,0.010671,93742.0,93731.0,0.010672]
[1767707178478,0.1120861,93743.0,93724.0,0.02129315]
[1767707179280,0.1120861,93743.0,93731.0,0.010672]
[1767707181382,0.1120861,93743.0,93732.0,0.010672]
[1767707181585,0.1120861,93743.0,93733.0,0.010672]
[1767707182280,0.0213661,93742.0,93733.0,0.010672]
[1767707184481,0.0213661,93742.0,93730.0,0.010672]
[1767707184985,0.0213661,93742.0,93732.0,0.010672]
[1767707186787,0.0320371,93742.0,93730.0,0.010672]
[1767707186976,0.0320371,93742.0,93721.0,0.11540857]
[1767707187175,0.0320371,93742.0,93728.0,0.010672]
[1767707187383,0.010671,93739.0,93726.0,0.010673]
[1767707187685,0.0213661,93738.0,93726.0,0.010673]
[1767707187881,0.0213661,93738.0,93720.0,0.08432497]
[1767707188076,0.010672,93729.0,93718.0,0.09072]
[1767707188386,0.0213661,93728.0,93715.0,0.010674]
[1767707188881,0.0213661,93728.0,93716.0,0.16027057]
[1767707189086,0.0213661,93728.0,93716.0,0.24700095]
[1767707189476,0.09978488,93729.0,93717.0,0.010674]
[1767707192680,0.0951995,93728.0,93716.0,0.08673038]
[1767707192882,0.0951995,93728.0,93714.0,0.010674]
[1767707192883,0.02070356,93724.0,93713.0,0.010674]
[1767707193075,0.02070356,93724.0,93710.0,0.09072]
[1767707193076,0.02070356,93724.0,93717.0,0.010674]
[1767707193281,0.02070356,93724.0,93716.0,0.010674]
[1767707193681,0.02070356,93724.0,93719.0,0.010673]
[1767707193874,0.0951995,93725.0,93719.0,0.010673]
[1767707194073,0.02070356,93728.0,93719.0,0.010673]
[1767707194291,0.02070356,93728.0,93721.0,0.010673]
[1767707196495,0.02070356,93728.0,93718.0,0.010673]
[1767707196878,0.0951995,93730.0,93712.0,0.15916202]
[1767707197092,0.0951995,93730.0,93710.0,0.20969855]
[1767707197295,0.0951995,93730.0,93711.0,0.15916202]
[1767707197592,0.0951995,93730.0,93711.0,0.17966242]
[1767707198289,0.11590306,93728.0,93718.0,0.010673]
[1767707198476,0.02070356,93727.0,93711.0,0.24307076]
[1767707198787,0.02070356,93727.0,93714.0,0.010674]
[1767707198987,0.02070356,93727.0,93712.0,0.16064789]
[1767707199178,0.02070356,93714.0,93694.0,0.0205004]
[1767707199381,0.09072,93713.0,93698.0,0.0205004]
[1767707199685,0.09072,93712.0,93707.0,0.010675]
[1767707200286,0.02070356,93718.0,93712.0,0.010674]
[1767707200486,0.09072,93717.0,93712.0,0.010674]
[1767707200686,0.03137556,93729.0,93712.0,0.010674]
[1767707200993,0.02070356,93726.0,93711.0,0.010674]
[1767707201292,0.02070356,93724.0,93711.0,0.010674]
[1767707202295,0.02070356,93722.0,93708.0,0.010675]
[1767707202497,0.09072,93721.0,93708.0,0.010675]
[1767707203693,0.09847815,93720.0,93708.0,0.010675]
[1767707204196,0.02070356,93714.0,93700.0,0.08622814]
[1767707204397,0.09847815,93711.0,93695.0,0.0205004]
[1767707204693,0.02070356,93714.0,93696.0,0.16092465]
[1767707205486,0.09847815,93710.0,93696.0,0.16092465]
[1767707205687,0.09072,93709.0,93696.0,0.16092465]
[1767707205996,0.09072,93709.0,93704.0,0.010675]
[1767707206897,0.09072,93709.0,93696.0,0.0205004]
[1767707207087,0.09072,93709.0,93703.0,0.010675]
[1767707207799,0.09072,93709.0,93702.0,0.010675]
[1767707207992,0.09072,93709.0,93696.0,0.08536543]
[1767707208295,0.09072,93709.0,93697.0,0.1605343]
[1767707208495,0.09072,93709.0,93698.0,0.010676]
[1767707208700,0.02070356,93706.0,93695.0,0.08483685]
[1767707208898,0.02070356,93706.0,93696.0,0.010676]
[1767707210194,0.02070356,93706.0,93698.0,0.010676]
[1767707210401,0.0951995,93708.0,93690.0,0.10915515]
[1767707210602,0.0951995,93708.0,93691.0,0.16025194]
[1767707211094,0.09072,93709.0,93702.0,0.010675]
[1767707214596,1.01436,93708.0,93702.0,0.010675]
[1767707214899,0.02070356,93710.0,93690.0,0.29820063]
[1767707215100,1.01436,93709.0,93690.0,0.29820063]
[1767707215397,1.01436,93708.0,93691.0,0.16069553]
[1767707215600,0.02070356,93710.0,93691.0,0.16069553]
[1767707215800,0.32288,93709.0,93699.0,0.010676]
[1767707217301,0.32288,93709.0,93691.0,0.010677]
[1767707217605,0.34358356,93709.0,93691.0,0.17161588]
[1767707218909,0.34358356,93709.0,93700.0,0.010676]
[1767707221197,0.02528255,93708.0,93700.0,0.010676]
[1767707221606,0.32288,93709.0,93701.0,0.010675]
[1767707222505,0.34600367,93709.0,93699.0,0.010676]
[1767707222704,0.02312367,93708.0,93697.0,0.010676]
[1767707223107,0.02312367,93708.0,93698.0,0.010676]
[1767707223306,0.09847815,93710.0,93698.0,0.010676]
[1767707223307,0.010674,93717.0,93698.0,0.09847815]
[1767707223616,9.9e-07,93716.0,93714.0,0.010674]
[1767707223798,0.02312367,93726.0,93716.0,0.010674]
[1767707224003,0.09076,93725.0,93716.0,0.010674]
[1767707224319,0.02312367,93726.0,93709.0,0.010675]
[1767707224512,0.11812917,93731.0,93711.0,0.010674]
[1767707224711,0.09076,93730.0,93720.0,0.09847815]
[1767707225014,0.09076,93729.0,93718.0,0.02350831]
[1767707225313,0.09076,93728.0,93727.0,0.010672]
[1767707225510,0.31344,93737.0,93727.0,0.010672]
[1767707225718,0.09076,93736.0,93727.0,0.010672]
[1767707225907,0.09847815,93740.0,93727.0,0.010672]
[1767707226101,0.49076,93739.0,93727.0,0.010672]
[1767707226306,0.4,93739.0,93727.0,0.010672]
[1767707226620,0.02312367,93737.0,93721.0,0.010673]
[1767707227106,0.12160182,93731.0,93718.0,0.010673]
[1767707227312,0.02312367,93730.0,93720.0,0.010673]
[1767707227915,0.02312367,93730.0,93717.0,0.010674]
[1767707228102,0.02312367,93730.0,93710.0,0.12198646]
[1767707228301,0.02312367,93730.0,93710.0,0.21818602]
[1767707228601,0.03379567,93730.0,93714.0,0.010674]
[1767707229008,0.03379567,93730.0,93710.0,0.21818602]
[1767707229408,0.03379567,93730.0,93716.0,0.010674]
[1767707230014,0.02312367,93730.0,93710.0,0.21818602]
[1767707231012,0.02312367,93730.0,93718.0,0.010674]
[1767707231611,0.02312367,93728.0,93710.0,0.09619956]
[1767707231814,0.02312367,93726.0,93710.0,0.09847815]
[1767707232617,0.09076,93728.0,93710.0,0.09847815]
[1767707233722,0.09076,93728.0,93718.0,0.010673]
[1767707237523,0.11350788,93728.0,93718.0,0.010673]
[1767707237915,0.02274788,93728.0,93718.0,0.09847815]
[1767707238122,0.010671,93740.0,93724.0,0.010673]
[1767707238322,0.09076,93739.0,93724.0,0.10687256]
[1767707238513,0.03309739,93740.0,93724.0,0.010673]
[1767707238714,0.02242639,93738.0,93725.0,0.010673]
[1767707238926,0.02242639,93738.0,93726.0,0.010673]
[1767707239321,0.02242639,93738.0,93729.0,0.010672]
[1767707239518,0.02242639,93738.0,93726.0,0.010673]
[1767707240224,0.09072,93737.0,93730.0,0.010672]
[1767707240811,0.03031142,93742.0,93730.0,0.010672]
[1767707241026,0.09072,93741.0,93730.0,0.010672]
[1767707241221,0.010671,93738.0,93722.0,0.09619956]
[1767707241428,0.01964042,93735.0,93720.0,0.09847815]
[1767707241827,0.11036042,93735.0,93726.0,0.010673]
[1767707242923,0.01964042,93735.0,93726.0,0.010673]
[1767707243125,0.01927666,93738.0,93729.0,0.010672]
[1767707243322,0.00860466,93735.0,93712.0,0.02350831]
[1767707243622,0.00860466,93734.0,93712.0,0.11970787]
[1767707243823,0.09072,93737.0,93726.0,0.010673]
[1767707244019,0.00829472,93736.0,93728.0,0.010672]
[1767707244533,0.00829472,93736.0,93723.0,0.010673]
[1767707245830,0.010672,93735.0,93723.0,0.010673]
[1767707246030,0.00804969,93733.0,93720.0,0.09847815]
[1767707246230,0.00804969,93732.0,93719.0,0.084542]
[1767707246432,0.00804969,93732.0,93716.0,0.09619956]
[1767707246632,0.010672,93735.0,93716.0,0.09619956]
[1767707246832,0.010672,93734.0,93722.0,0.010673]
[1767707247934,0.010672,93734.0,93720.0,0.010673]
[1767707248833,0.010672,93734.0,93721.0,0.010673]
[1767707252439,0.010672,93735.0,93719.0,0.08585669]
[1767707252634,0.010672,93735.0,93716.0,0.12766372]
[1767707252939,0.09072,93734.0,93721.0,0.010673]
[1767707254546,0.09072,93734.0,93720.0,0.09847815]
[1767707254547,0.09072,93734.0,93723.0,0.010673]
[1767707255048,0.09072,93734.0,93720.0,0.010673]
[1767707255248,0.010672,93732.0,93717.0,0.09704968]
[1767707255444,0.00572395,93733.0,93717.0,0.09704968]
[1767707255647,0.010672,93732.0,93717.0,0.09704968]
[1767707256250,0.010672,93730.0,93717.0,0.09704968]
[1767707258254,0.010673,93727.0,93717.0,0.09704968]
[1767707258454,0.010673,93727.0,93717.0,0.1811238]
[1767707259857,0.010673,93726.0,93717.0,0.1811238]
[1767707260151,0.010673,93724.0,93717.0,0.1811238]
[1767707260356,0.010672,93732.0,93717.0,0.1811238]
[1767707260745,0.010673,93723.0,93717.0,0.1811238]
[1767707261057,0.010672,93731.0,93717.0,0.1811238]
[1767707261658,0.010673,93722.0,93718.0,0.09704968]
[1767707261859,0.010672,93731.0,93715.0,0.03146416]
[1767707262053,0.010672,93731.0,93715.0,0.11707693]
[1767707262255,0.010673,93723.0,93715.0,0.11707693]
[1767707262456,0.010672,93731.0,93715.0,0.11707693]
[1767707262853,0.010673,93722.0,93715.0,0.21412661]
[1767707263056,0.010672,93731.0,93716.0,0.09704968]
[1767707263254,0.09639717,93734.0,93716.0,0.09704968]
[1767707263856,0.010673,93724.0,93716.0,0.09704968]
[1767707264758,0.010673,93722.0,93716.0,0.09704968]
[1767707264963,0.010672,93731.0,93716.0,0.09704968]
[1767707265260,0.010673,93723.0,93716.0,0.12851384]
[1767707265468,0.101392,93733.0,93716.0,0.09704968]
[1767707267161,0.010673,93725.0,93716.0,0.09704968]
[1767707268664,0.010673,93724.0,93716.0,0.12851384]
[1767707269459,0.010673,93727.0,93716.0,0.12851384]
[1767707269664,0.010673,93725.0,93716.0,0.12851384]
[1767707269865,0.010673,93723.0,93712.0,0.03146416]
[1767707270070,0.02686479,93731.0,93712.0,0.12851384]
[1767707270363,0.010672,93731.0,93713.0,0.12851384]
[1767707270957,0.010672,93731.0,93714.0,0.09704968]
[1767707271156,0.02637519,93731.0,93714.0,0.09704968]
[1767707271457,0.01570319,93730.0,93714.0,0.09704968]
[1767707271857,0.10642319,93733.0,93714.0,0.09704968]
[1767707272663,0.010672,93728.0,93714.0,0.09704968]
[1767707273061,0.010673,93726.0,93714.0,0.09704968]
[1767707273870,0.010673,93726.0,93714.0,0.12851384]
[1767707274661,0.01442606,93746.0,93723.0,0.09704968]
[1767707274868,0.09072,93737.0,93725.0,0.12851384]
[1767707275370,0.09072,93737.0,93720.0,0.03146416]
[1767707275565,0.010672,93729.0,93720.0,0.03146416]
[1767707276671,0.010672,93731.0,93720.0,0.03146416]
[1767707276873,0.010672,93731.0,93720.0,0.12851384]
[1767707278076,0.010672,93730.0,93720.0,0.12851384]
[1767707278367,0.010673,93726.0,93720.0,0.09704968]
[1767707278578,0.02390537,93735.0,93716.0,0.03114932]
[1767707278764,0.02390537,93735.0,93717.0,0.09949181]
[1767707278964,0.09072,93737.0,93719.0,0.13064113]
[1767707279174,0.010672,93729.0,93719.0,0.13064113]
[1767707279674,0.010673,93727.0,93719.0,0.13064113]
[1767707279975,0.101392,93729.0,93720.0,0.09949181]
[1767707280164,0.010671,93737.0,93720.0,0.09949181]
[1767707280364,0.02365428,93735.0,93714.0,0.13064113]
[1767707280677,0.010673,93725.0,93715.0,0.13064113]
[1767707280877,0.010673,93727.0,93715.0,0.13064113]
[1767707281068,0.010673,93727.0,93716.0,0.09949181]
[1767707281368,0.010673,93727.0,93716.0,0.13166128]
[1767707281568,0.010673,93727.0,93717.0,0.03216947]
[1767707281769,0.010672,93730.0,93720.0,0.0931129]
[1767707281971,0.09072,93729.0,93720.0,0.0931129]
[1767707282172,0.09072,93729.0,93722.0,0.0931129]
[1767707283364,0.010672,93729.0,93722.0,0.0931129]
[1767707283569,0.101392,93729.0,93722.0,0.0931129]
[1767707285173,0.02291024,93740.0,93717.0,0.03216947]
[1767707285372,0.02291024,93735.0,93716.0,0.0931129]
[1767707285877,0.02291024,93735.0,93716.0,0.12528237]
[1767707286075,0.010671,93737.0,93718.0,0.0931129]
[1767707287179,0.010672,93728.0,93718.0,0.0931129]
[1767707287380,0.010673,93725.0,93718.0,0.0931129]
[1767707288882,0.010673,93727.0,93718.0,0.0931129]
[1767707289280,0.010673,93725.0,93718.0,0.0931129]
[1767707289782,0.010673,93724.0,93718.0,0.0931129]
[1767707289982,0.09072,93729.0,93714.0,0.03216947]
[1767707290182,0.010673,93721.0,93714.0,0.03216947]
[1767707290384,0.09072,93729.0,93715.0,0.0931129]
[1767707290577,0.09072,93729.0,93716.0,0.12528237]
[1767707291284,0.010673,93721.0,93717.0,0.0931129]
[1767707291884,0.09072,93729.0,93717.0,0.0931129]
[1767707292081,0.09072,93729.0,93718.0,0.0931129]
[1767707292281,0.09072,93729.0,93718.0,0.12528237]
[1767707292785,0.010673,93724.0,93718.0,0.12528237]
[1767707292989,0.010673,93723.0,93719.0,0.0931129]
[1767707293176,0.010673,93721.0,93719.0,9e-07]
[1767707293373,0.010674,93719.0,93705.0,0.010675]
[1767707293578,0.010674,93719.0,93707.0,0.010675]
[1767707293877,0.101392,93729.0,93707.0,0.23166688]
[1767707294075,0.101392,93729.0,93707.0,0.010675]
[1767707294279,0.010673,93722.0,93706.0,0.13450945]
[1767707294489,0.010673,93722.0,93707.0,0.13450945]
[1767707294683,0.010673,93722.0,93707.0,0.29357869]
[1767707294986,0.010673,93722.0,93711.0,0.010674]
[1767707295180,0.09072,93729.0,93711.0,0.010674]
[1767707295379,0.09072,93729.0,93713.0,0.12528237]
[1767707295583,0.09072,93729.0,93716.0,0.03216947]
[1767707296188,0.010673,93724.0,93716.0,0.03216947]
[1767707297487,0.010673,93723.0,93716.0,0.03216947]
[1767707297680,0.010673,93725.0,93716.0,0.03216947]
[1767707298587,0.010673,93724.0,93716.0,0.03216947]
[1767707299088,0.010673,93723.0,93716.0,0.03216947]
[1767707299387,0.010673,93722.0,93716.0,0.03216947]
[1767707300087,0.010671,93738.0,93716.0,0.03216947]
[1767707300088,0.010671,93738.0,93720.0,0.12528237]
[1767707300276,0.010671,93738.0,93716.0,0.010674]
[1767707300277,0.09072,93737.0,93712.0,0.010674]
[1767707300586,0.09072,93736.0,93709.0,0.010675]
[1767707300785,0.010675,93709.0,93697.0,0.05733236]
[1767707301096,0.010674,93718.0,93694.0,0.09072]
[1767707301097,0.010674,93712.0,93699.0,0.16059896]
[1767707301394,0.010674,93712.0,93699.0,0.08689114]
[1767707301686,0.010674,93713.0,93700.0,0.17127496]
[1767707302086,0.010674,93713.0,93700.0,0.010676]
[1767707302390,0.010674,93713.0,93701.0,0.19253809]
[1767707302988,0.010674,93711.0,93701.0,0.19253809]
[1767707303189,0.010674,93714.0,93701.0,0.19253809]
[1767707303390,0.010674,93712.0,93701.0,0.19253809]
[1767707303590,0.010674,93710.0,93701.0,0.19253809]
[1767707304494,0.010673,93720.0,93699.0,0.08493389]
[1767707304495,0.010674,93716.0,93699.0,0.08493389]
[1767707304700,0.010676,93701.0,93686.0,0.101397]
[1767707304999,0.010675,93702.0,93695.0,0.15952383]
[1767707305199,0.010675,93702.0,93690.0,0.15952383]
[1767707305401,0.010675,93705.0,93690.0,0.010677]
[1767707305795,0.010675,93705.0,93692.0,0.010677]
[1767707306099,0.010675,93705.0,93693.0,0.15943439]
[1767707306301,0.09072,93710.0,93696.0,0.010676]
[1767707306496,0.010674,93714.0,93701.0,0.01761294]
[1767707306695,0.09072,93713.0,93701.0,0.0931129]
[1767707306999,0.010674,93714.0,93701.0,0.0931129]
[1767707307202,0.010674,93712.0,93701.0,0.0931129]
[1767707307802,0.010674,93713.0,93701.0,0.0931129]
[1767707308001,0.010674,93713.0,93702.0,0.00023505]
[1767707308298,0.010674,93714.0,93702.0,0.00023505]
[1767707311101,0.010674,93712.0,93702.0,0.00023505]
[1767707311489,0.010674,93710.0,93698.0,0.010676]
[1767707311900,0.010674,93713.0,93695.0,0.09485946]
[1767707312201,0.010674,93711.0,93698.0,0.010676]
[1767707312703,0.010674,93712.0,93698.0,0.010676]
[1767707312897,0.010674,93715.0,93695.0,0.09485946]
[1767707313098,0.010674,93713.0,93695.0,0.09485946]
[1767707313397,0.010674,93713.0,93696.0,0.25560143]
[1767707313707,0.010674,93713.0,93696.0,0.09485946]
[1767707314098,0.010674,93711.0,93698.0,0.010676]
[1767707315292,0.010674,93711.0,93696.0,0.09485946]
[1767707315697,0.010674,93711.0,93699.0,0.010676]
[1767707317501,0.010674,93711.0,93697.0,0.010676]
[1767707317810,0.010674,93711.0,93697.0,0.17103104]
[1767707318915,0.010675,93709.0,93697.0,0.16035504]
[1767707319422,0.010675,93708.0,93697.0,0.16035504]
[1767707320222,0.010675,93709.0,93697.0,0.16035504]
[1767707321310,0.09076,93716.0,93697.0,0.16035504]
[1767707322527,0.09076,93716.0,93698.0,0.010676]
[1767707323629,0.010674,93711.0,93698.0,0.010676]
[1767707325033,0.010675,93709.0,93696.0,0.09485946]
[1767707325421,0.010675,93709.0,93697.0,0.16013606]
[1767707326033,0.010675,93707.0,93697.0,0.16013606]
[1767707326634,0.010675,93710.0,93697.0,0.16013606]
[1767707327233,0.09076,93716.0,93698.0,0.010676]
[1767707327433,0.010674,93711.0,93698.0,0.010676]
[1767707328129,0.09076,93716.0,93696.0,0.09485946]
[1767707328436,0.09076,93722.0,93707.0,0.09485946]
[1767707328932,0.010674,93716.0,93707.0,0.09485946]
[1767707333336,0.010674,93719.0,93707.0,0.09485946]
[1767707333537,0.010674,93717.0,93707.0,0.09485946]
[1767707333931,0.010674,93717.0,93702.0,0.10553446]
[1767707334332,0.010674,93715.0,93702.0,0.10553446]
[1767707334532,0.09850001,93720.0,93702.0,0.09485946]
[1767707334938,0.23629715,93720.0,93701.0,0.05938416]
[1767707335136,0.23629715,93720.0,93697.0,0.09076]
[1767707335732,0.010674,93710.0,93697.0,0.15021722]
[1767707336239,0.010674,93713.0,93697.0,0.24507668]
[1767707336440,0.010674,93712.0,93697.0,0.24507668]
[1767707336640,0.010674,93712.0,93698.0,0.09485946]
[1767707336939,0.010674,93710.0,93698.0,0.09485946]
[1767707337535,0.010674,93713.0,93698.0,0.10553546]
[1767707338440,0.010674,93713.0,93700.0,0.10917601]
[1767707338747,0.010674,93713.0,93700.0,0.20403547]
[1767707339640,0.09076,93722.0,93704.0,0.09485946]
[1767707339833,0.010674,93718.0,93704.0,0.09485946]
[1767707340241,0.09076,93722.0,93704.0,0.09485946]
[1767707341040,0.010673,93719.0,93704.0,0.10553446]
[1767707341242,0.010673,93719.0,93706.0,0.010675]
[1767707341836,0.010673,93719.0,93704.0,0.09485946]
[1767707342036,0.010673,93719.0,93704.0,0.10553446]
[1767707342331,0.0989041,93726.0,93704.0,0.10553446]
[1767707342332,0.010674,93717.0,93704.0,0.10553446]
[1767707342539,0.010674,93715.0,93704.0,0.09485946]
[1767707342937,0.010674,93715.0,93700.0,0.10917601]
[1767707343243,0.010674,93717.0,93703.0,0.010675]
[1767707344737,0.010674,93717.0,93701.0,0.010675]
[1767707345445,0.010674,93716.0,93701.0,0.010675]
[1767707346036,0.010674,93718.0,93700.0,0.19107986]
[1767707346947,0.010674,93717.0,93703.0,0.010675]
[1767707347148,0.010674,93716.0,93701.0,0.010675]
[1767707348345,0.010674,93714.0,93701.0,0.010675]
[1767707348745,0.12596041,93718.0,93700.0,0.09850001]
[1767707349047,0.010674,93712.0,93700.0,0.09850001]
[1767707350449,0.09250084,93717.0,93700.0,0.09850001]
[1767707350651,0.010674,93711.0,93697.0,0.15021722]
[1767707350846,0.09250084,93717.0,93700.0,0.09850001]
[1767707351045,0.010674,93710.0,93700.0,0.09850001]
[1767707351351,0.09250084,93717.0,93700.0,0.09850001]
[1767707351751,0.010674,93713.0,93700.0,0.09850001]
[1767707353244,0.010674,93713.0,93700.0,0.19107986]
[1767707353445,0.010674,93713.0,93700.0,0.09257985]
[1767707353645,0.010674,93713.0,93700.0,0.19107986]
[1767707353855,0.010674,93715.0,93700.0,0.20175586]
[1767707354258,0.010674,93717.0,93700.0,0.19107986]
[1767707354761,0.010674,93715.0,93701.0,0.010675]
[1767707355652,0.09850001,93730.0,93701.0,0.010675]
[1767707355653,0.010673,93720.0,93704.0,0.010675]
[1767707355966,0.010673,93720.0,93710.0,0.09850001]
[1767707356458,0.010673,93720.0,93705.0,0.09257985]
[1767707359159,0.010673,93720.0,93705.0,0.10325485]
[1767707359360,0.09076,93724.0,93707.0,0.09257985]
[1767707359559,0.010673,93723.0,93707.0,0.09257985]
[1767707361163,0.010673,93723.0,93708.0,0.010675]
[1767707362660,0.010673,93723.0,93707.0,0.10325485]
[1767707364463,0.010673,93723.0,93707.0,0.09257985]
[1767707365163,0.010673,93721.0,93707.0,0.09257985]
[1767707367364,0.010673,93719.0,93707.0,0.09257985]
[1767707367558,0.010674,93712.0,93701.0,0.09257985]
[1767707367758,0.010674,93715.0,93701.0,0.09257985]
[1767707369664,0.010674,93713.0,93701.0,0.09257985]
[1767707370158,0.010674,93711.0,93701.0,0.09257985]
[1767707370362,0.010673,93722.0,93701.0,0.09257985]
[1767707370564,0.010675,93710.0,93701.0,0.09257985]
[1767707370756,0.10917301,93720.0,93701.0,0.09257985]
[1767707371066,0.010674,93711.0,93701.0,0.09257985]
[1767707371267,0.09850001,93720.0,93701.0,0.09257985]
[1767707372065,0.010674,93711.0,93701.0,0.09257985]
[1767707372265,0.09850001,93720.0,93701.0,0.09257985]
[1767707373757,0.010673,93721.0,93701.0,0.09257985]
[1767707374060,0.010674,93712.0,93701.0,0.09257985]
[1767707374260,0.010674,93715.0,93701.0,0.09257985]
[1767707374562,0.010674,93716.0,93701.0,0.09257985]
[1767707374772,0.010674,93716.0,93701.0,0.10325485]
[1767707375363,0.010674,93714.0,93701.0,0.09257985]
[1767707376758,0.010674,93717.0,93701.0,0.09257985]
[1767707377461,0.010673,93720.0,93702.0,0.010675]
[1767707377655,0.12582789,93724.0,93702.0,0.09377345]
[1767707377862,0.010673,93726.0,93711.0,0.010674]
[1767707378060,0.010673,93726.0,93712.0,0.09377345]
[1767707378254,0.09076,93729.0,93712.0,0.09377345]
[1767707378255,0.101432,93729.0,93712.0,0.09377345]
[1767707379068,0.12446416,93728.0,93707.0,0.09076]
[1767707379263,0.12446416,93725.0,93708.0,0.010675]
[1767707379462,0.010673,93724.0,93708.0,0.010675]
[1767707379666,0.12446416,93725.0,93707.0,0.09076]
[1767707379866,0.13513716,93725.0,93709.0,0.010674]
[1767707380161,0.10181011,93725.0,93710.0,0.010674]
[1767707380361,0.10181011,93725.0,93708.0,0.010675]
[1767707380867,0.09113711,93725.0,93712.0,0.010674]
[1767707381070,0.09113711,93725.0,93707.0,0.09076]
[1767707381657,0.09113711,93725.0,93711.0,0.010674]
[1767707382064,0.09113711,93725.0,93713.0,0.010674]
[1767707382473,0.09113711,93725.0,93710.0,0.010674]
[1767707382770,0.09113711,93725.0,93707.0,0.09076]
[1767707382771,0.010673,93724.0,93708.0,0.010675]
[1767707383370,0.12446416,93723.0,93708.0,0.010675]
[1767707383572,0.12446416,93721.0,93708.0,0.010675]
[1767707383868,0.12446416,93721.0,93707.0,0.09076]
[1767707384171,0.09113711,93721.0,93707.0,0.09076]
[1767707384578,0.09113711,93721.0,93708.0,0.010675]
[1767707388073,0.09076,93732.0,93716.0,0.010674]
[1767707388675,0.12408705,93732.0,93716.0,0.010674]
[1767707389174,0.12408705,93732.0,93718.0,0.010673]
[1767707389574,0.03332705,93731.0,93718.0,0.010673]
[1767707390574,0.03332705,93730.0,93718.0,0.010673]
[1767707391077,0.03546042,93749.0,93727.0,0.09377345]
[1767707391266,0.03546042,93749.0,93719.0,0.4]
[1767707391267,0.00213337,93749.0,93737.0,0.010671]
[1767707391468,0.00213337,93749.0,93734.0,0.010672]
[1767707391968,0.00213337,93749.0,93736.0,0.010671]
[1767707392165,0.09113711,93755.0,93733.0,0.10444545]
[1767707392375,0.01067,93751.0,93733.0,0.18782249]
[1767707393773,0.03332705,93753.0,93735.0,0.010672]
[1767707394672,0.01067,93752.0,93735.0,0.010672]
[1767707398279,0.01067,93752.0,93733.0,0.2360026]
[1767707398670,0.01067,93752.0,93734.0,0.010672]
[1767707399276,0.01067,93749.0,93733.0,0.2360026]
[1767707400079,0.01067,93749.0,93733.0,0.2466746]
[1767707400279,0.03332705,93753.0,93733.0,0.2360026]
[1767707400280,0.01067,93747.0,93733.0,0.2360026]
[1767707400576,0.03332705,93753.0,93733.0,1.5e-07]
[1767707400577,0.03045202,93743.0,93733.0,1.5e-07]
[1767707400783,0.03045202,93736.0,93721.0,0.09072]
[1767707400983,0.010672,93731.0,93721.0,0.09072]
[1767707401175,0.03422005,93739.0,93729.0,9e-08]
[1767707401378,0.03422005,93744.0,93723.0,0.09570326]
[1767707401580,0.03422005,93733.0,93711.0,0.09570326]
[1767707401776,0.010671,93741.0,93715.0,0.010674]
[1767707401976,0.010672,93733.0,93715.0,0.01704774]
[1767707402176,0.010672,93733.0,93717.0,0.09570326]
[1767707402377,0.010671,93737.0,93717.0,0.112751]
[1767707402686,0.010671,93740.0,93724.0,0.112751]
[1767707403075,0.010671,93743.0,93728.0,0.124689]
[1767707403580,0.01067,93746.0,93729.0,0.124689]
[1767707403977,0.09848828,93770.0,93724.0,0.09072]
[1767707403978,0.03422005,93750.0,93732.0,0.09570326]
[1767707404285,0.01067,93748.0,93737.0,0.12297885]
[1767707404581,0.01067,93748.0,93737.0,0.09570326]
[1767707409395,0.01067,93751.0,93737.0,0.09570326]
[1767707409896,0.01067,93749.0,93737.0,0.09570326]
[1767707410196,0.01067,93749.0,93733.0,0.03794759]
[1767707410197,0.01067,93747.0,93733.0,0.02727559]
[1767707410389,0.03422005,93751.0,93731.0,0.09570326]
[1767707410590,0.01067,93746.0,93731.0,0.09570326]
[1767707411688,0.01067,93749.0,93731.0,0.09570326]
[1767707411883,0.01067,93749.0,93731.0,0.11906542]
[1767707412299,0.01067,93749.0,93732.0,0.010672]
[1767707412500,0.01067,93749.0,93732.0,0.12973742]
[1767707412999,0.21756421,93798.0,93723.0,0.11864643]
[1767707413000,0.010671,93737.0,93723.0,0.11864643]
[1767707413201,0.03422005,93744.0,93724.0,0.11864643]
[1767707413404,0.03422005,93739.0,93721.0,0.09072]
[1767707413703,0.010673,93723.0,93719.0,0.00213405]
[1767707413897,0.03422005,93731.0,93719.0,5e-08]
[1767707414095,0.010673,93724.0,93720.0,3e-08]
[1767707414406,0.03422005,93731.0,93719.0,5e-08]
[1767707415203,0.010673,93726.0,93719.0,5e-08]
[1767707415505,0.03422005,93731.0,93719.0,5e-08]
[1767707415708,0.010672,93734.0,93725.0,0.12152654]
[1767707415899,0.03422005,93735.0,93719.0,5e-08]
[1767707416208,0.010672,93732.0,93719.0,5e-08]
[1767707416414,0.010672,93728.0,93719.0,5e-08]
[1767707416601,0.03422005,93735.0,93719.0,5e-08]